[Event "Turkish Cup 2024"]
[Site "Denizli"]
[Date "2024.07.31"]
[Round "3"]
[White "Bulgurlu, Okan"]
[Black "Sadik, Muhammed Selim"]
[Result "1/2-1/2"]
[ECO "B40"]
[WhiteElo "1964"]
[BlackElo "1798"]
[Annotator "RC"]
[PlyCount "88"]
[EventDate "2024.08.01"]
[EventType "swiss"]
[EventCountry "TUR"]
[SourceTitle "playchess.com"]
[Source "ChessBase"]
[SourceQuality "1"]
[TimeControl "5400+30"]

1. e4 {[%emt 0:07:00]} c5 {[%emt 0:01:00]} 2. Nf3 {[%emt 0:00:30]} e6 {[%emt 0:00:00]} 3. d4 {[%emt 0:00:30]} cxd4 {[%emt 0:00:00]} 4. Nxd4 {[%emt 0:00:00]} Nf6 {[%emt 0:00:30]} 5. Bd3 {[%emt 0:00:00]} Nc6 {[%emt 0:00:30]} 6. Ne2 {[%emt 0:00:30]} d5 {[%emt 0:00:30]} 7. exd5 {[%emt 0:00:00]} exd5 {[%emt 0:00:30]} 8. O-O {[%emt 0:00:00]} Be7 {[%emt 0:00:30]} 9. Ng3 {[%emt 0:00:30]} O-O {[%emt 0:00:30]} 10. Nc3 {[%emt 0:05:30]} Re8 {[%emt 0:02:30]} 11. Bf4 {[%emt 0:01:30]} Be6 {[%emt 0:02:30]} 12. Nb5 {[%emt 0:00:30]} Rf8 {[%emt 0:04:30]} 13. Re1 {[%emt 0:41:30]} Qd7 {[%emt 0:04:30]} 14. Qe2 {[%emt 0:04:30]} Rac8 {[%emt 0:00:30]} 15. a3 {[%emt 0:01:30]} Rfe8 {[%emt 0:00:30]} 16. h3 {[%emt 0:06:30]} a6 {[%emt 0:03:30]} 17. Nc3 {[%emt 0:00:30]} Bc5 {[%emt 0:07:30]} 18. Nh5 {[%emt 0:04:30]} Ng4 {[%emt 0:02:30]} 19. hxg4 {[%emt 0:07:31]} Bxg4 {[%emt 0:00:30]} 20. Qd2 {[%emt 0:00:00]} Bxh5 {[%emt 0:01:30]} 21. Nxd5 {[%emt 0:00:00]} Qg4 {[%emt 0:04:30]} 22. Rxe8+ {[%emt 0:09:09]} Rxe8 {[%emt 0:00:00]} 23. Re1 {[%emt 0:00:43]} Rd8 {[%emt 0:04:00]} 24. Bc7 {[%emt 0:02:49]} Nd4 {[%emt 0:09:30]} 25. Bxd8 {[%emt 0:03:18]} Nf3+ {[%emt 0:01:30]} 26. Kh1 {[%emt 0:00:59]} f6 {[%emt 0:00:30]} 27. Qf4 {[%emt 0:03:20]} Nxe1 {[%emt 0:01:30]} 28. Qxg4 {[%emt 0:00:49]} Bxg4 {[%emt 0:00:30]} 29. Bc4 {[%emt 0:00:16]} Kf8 {[%emt 0:00:30]} 30. Bb6 {[%emt 0:00:34]} Bxb6 {[%emt 0:03:30]} 31. Nxb6 {[%emt 0:00:03]} Bf5 {[%emt 0:01:30]} 32. Bd5 {[%emt 0:00:38]} Bxc2 {[%emt 0:00:30]} 33. Bxb7 {[%emt 0:00:06]} a5 {[%emt 0:00:30]} 34. Nc4 {[%emt 0:00:28]} a4 {[%emt 0:01:30]} 35. Ne3 {[%emt 0:00:30]} Bb3 {[%emt 0:00:00]} 36. Be4 {[%emt 0:00:00]} g6 {[%emt 0:00:00]} 37. g4 {[%emt 0:00:01]} Be6 {[%emt 0:05:30]} 38. Kg1 {[%emt 0:00:30]} f5 {[%emt 0:00:00]} 39. gxf5 {[%emt 0:00:45]} gxf5 {[%emt 0:00:00]} 40. Nxf5 {[%emt 0:00:19]} Nf3+ {[%emt 0:00:30]} 41. Kh1 {[%emt 0:00:02]} Nd2 {[%emt 0:01:30]} 42. Bc2 {[%emt 0:02:24]} Bxf5 {[%emt 0:04:30]} 43. Bxf5 {[%emt 0:00:01]} Nc4 {[%emt 0:00:30]} 44. Bxh7 {[%emt 0:01:11]} Nxb2 {[%emt 0:00:00]} 1/2-1/2

[Event "Turkish Cup 2024"]
[Site "Denizli"]
[Date "2024.07.31"]
[Round "3"]
[White "Kartal, Efe Onur"]
[Black "Bilir, Ibrahim"]
[Result "0-1"]
[ECO "B25"]
[WhiteElo "1956"]
[BlackElo "1830"]
[Annotator "RC"]
[PlyCount "98"]
[EventDate "2024.08.01"]
[EventType "swiss"]
[EventCountry "TUR"]
[SourceTitle "playchess.com"]
[Source "ChessBase"]
[SourceQuality "1"]
[TimeControl "5400+30"]

1. e4 {[%emt 0:01:00]} c5 {[%emt 0:01:00]} 2. Nc3 {[%emt 0:00:00]} Nc6 {[%emt 0:00:30]} 3. g3 {[%emt 0:00:00]} g6 {[%emt 0:00:30]} 4. Bg2 {[%emt 0:00:00]} Bg7 {[%emt 0:00:30]} 5. d3 {[%emt 0:00:00]} d6 {[%emt 0:00:30]} 6. Nge2 {[%emt 0:00:30]} e5 {[%emt 0:00:30]} 7. O-O {[%emt 0:00:30]} Nge7 {[%emt 0:01:30]} 8. f4 {[%emt 0:01:30]} Be6 {[%emt 0:01:30]} 9. Nd5 {[%emt 0:01:30]} O-O {[%emt 0:03:30]} 10. fxe5 {[%emt 0:00:30]} Nxe5 {[%emt 0:02:30]} 11. Bg5 {[%emt 0:00:30]} Bxd5 {[%emt 0:00:30]} 12. exd5 {[%emt 0:00:30]} h6 {[%emt 0:01:30]} 13. Bf4 {[%emt 0:06:30]} Qd7 {[%emt 0:16:30]} 14. Qd2 {[%emt 0:03:30]} g5 {[%emt 0:08:30]} 15. Bxe5 {[%emt 0:00:30]} dxe5 {[%emt 0:01:30]} 16. c4 {[%emt 0:01:30]} f5 {[%emt 0:02:30]} 17. b4 {[%emt 0:00:30]} Qd6 {[%emt 0:05:30]} 18. Rab1 {[%emt 0:00:30]} b6 {[%emt 0:04:30]} 19. bxc5 {[%emt 0:00:30]} Qxc5+ {[%emt 0:00:30]} 20. Kh1 {[%emt 0:00:30]} Rae8 {[%emt 0:05:30]} 21. Rb5 {[%emt 0:02:30]} Qd6 {[%emt 0:03:30]} 22. d4 {[%emt 0:01:30]} e4 {[%emt 0:00:30]} 23. Nc3 {[%emt 0:11:30]} Ng6 {[%emt 0:08:30]} 24. c5 {[%emt 0:01:30]} bxc5 {[%emt 0:00:30]} 25. Rxc5 {[%emt 0:00:30]} Qd7 {[%emt 0:07:30]} 26. Re1 {[%emt 0:06:30]} Bf6 {[%emt 0:11:39]} 27. Nb5 {[%emt 0:09:30]} Be7 {[%emt 0:04:28]} 28. Rc6 {[%emt 0:01:30]} Rf6 {[%emt 0:00:09]} 29. Rec1 {[%emt 0:00:30]} Ref8 {[%emt 0:02:39]} 30. Nc7 {[%emt 0:05:30]} Ba3 {[%emt 0:01:29]} 31. R1c2 {[%emt 0:07:30]} Ne7 {[%emt 0:01:27]} 32. Nb5 {[%emt 0:03:30]} Nxc6 {[%emt 0:00:46]} 33. dxc6 {[%emt 0:01:30]} Rxc6 {[%emt 0:00:54]} 34. Nxa3 {[%emt 0:00:00]} Rfc8 {[%emt 0:00:33]} 35. Bf1 {[%emt 0:01:00]} Rxc2 {[%emt 0:00:44]} 36. Nxc2 {[%emt 0:00:30]} Qc6 {[%emt 0:00:31]} 37. Ne3 {[%emt 0:00:30]} f4 {[%emt 0:01:43]} 38. gxf4 {[%emt 0:05:30]} gxf4 {[%emt 0:00:04]} 39. Qg2+ {[%emt 0:24:32]} Kh7 {[%emt 0:01:01]} 40. Nf5 {[%emt 0:00:36]} Rc7 {[%emt 0:01:38]} 41. Qg4 {[%emt 0:01:01]} e3+ {[%emt 0:00:35]} 42. Kg1 {[%emt 0:00:20]} Qg6 {[%emt 0:00:21]} 43. Qxg6+ {[%emt 0:02:49]} Kxg6 {[%emt 0:00:00]} 44. Bd3 {[%emt 0:00:36]} Kf6 {[%emt 0:00:51]} 45. Nxh6 {[%emt 0:00:59]} Rc3 {[%emt 0:00:43]} 46. Ng4+ {[%emt 0:00:33]} Ke6 {[%emt 0:00:25]} 47. Bf1 {[%emt 0:00:30]} Kf5 {[%emt 0:00:29]} 48. Ne5 {[%emt 0:00:32]} Rc1 {[%emt 0:00:37]} 49. Kg2 {[%emt 0:00:28]} Rc2+ {[%emt 0:00:16]} 0-1

[Event "Turkish Cup 2024"]
[Site "Denizli"]
[Date "2024.07.31"]
[Round "3"]
[White "Yildiz, Talat"]
[Black "Tatlioglu, Ege"]
[Result "1-0"]
[ECO "E05"]
[WhiteElo "1956"]
[BlackElo "1852"]
[Annotator "RC"]
[PlyCount "77"]
[EventDate "2024.08.01"]
[EventType "swiss"]
[EventCountry "TUR"]
[SourceTitle "playchess.com"]
[Source "ChessBase"]
[SourceQuality "1"]
[TimeControl "5400+30"]

1. c4 {[%emt 0:02:00]} e6 {[%emt 0:01:00]} 2. Nf3 {[%emt 0:00:30]} d5 {[%emt 0:00:00]} 3. d4 {[%emt 0:00:30]} Nf6 {[%emt 0:01:00]} 4. g3 {[%emt 0:00:30]} Be7 {[%emt 0:00:00]} 5. Bg2 {[%emt 0:00:30]} O-O {[%emt 0:00:00]} 6. O-O {[%emt 0:00:00]} dxc4 {[%emt 0:00:30]} 7. Qc2 {[%emt 0:01:00]} b5 {[%emt 0:01:30]} 8. a4 {[%emt 0:03:30]} b4 {[%emt 0:00:00]} 9. Nbd2 {[%emt 0:02:30]} Bb7 {[%emt 0:07:00]} 10. Nxc4 {[%emt 0:00:30]} c5 {[%emt 0:02:30]} 11. dxc5 {[%emt 0:06:30]} Bxc5 {[%emt 0:00:30]} 12. Bf4 {[%emt 0:01:30]} Nbd7 {[%emt 0:38:30]} 13. Bd6 {[%emt 0:16:30]} Rc8 {[%emt 0:22:30]} 14. Bxf8 {[%emt 0:02:30]} Qxf8 {[%emt 0:00:30]} 15. b3 {[%emt 0:02:30]} Qe7 {[%emt 0:01:30]} 16. Ng5 {[%emt 0:04:30]} Ne5 {[%emt 0:03:29]} 17. Ne4 {[%emt 0:07:30]} Nxe4 {[%emt 0:01:50]} 18. Bxe4 {[%emt 0:00:30]} Nxc4 {[%emt 0:00:21]} 19. Bxb7 {[%emt 0:13:30]} Qxb7 {[%emt 0:02:08]} 20. bxc4 {[%emt 0:00:30]} h5 {[%emt 0:01:45]} 21. h4 {[%emt 0:04:30]} Qc7 {[%emt 0:03:50]} 22. Qd3 {[%emt 0:03:30]} a5 {[%emt 0:00:13]} 23. Rfd1 {[%emt 0:01:30]} Qe5 {[%emt 0:00:09]} 24. Rab1 {[%emt 0:04:30]} Rb8 {[%emt 0:01:57]} 25. Kg2 {[%emt 0:00:30]} Be7 {[%emt 0:00:44]} 26. Qf3 {[%emt 0:03:10]} Bf6 {[%emt 0:00:35]} 27. Rd3 {[%emt 0:02:11]} Qc5 {[%emt 0:00:32]} 28. Qe4 {[%emt 0:00:26]} Rc8 {[%emt 0:00:16]} 29. Rbd1 {[%emt 0:01:41]} g6 {[%emt 0:01:23]} 30. Qf4 {[%emt 0:00:37]} Bc3 {[%emt 0:00:25]} 31. Rd7 {[%emt 0:03:57]} Qc6+ {[%emt 0:01:34]} 32. Kh2 {[%emt 0:02:22]} Rf8 {[%emt 0:00:04]} 33. Rc7 {[%emt 0:02:00]} Qxa4 {[%emt 0:04:06]} 34. Rdd7 {[%emt 0:00:13]} b3 {[%emt 0:00:42]} 35. Qe4 {[%emt 0:04:03]} Kg7 {[%emt 0:02:48]} 36. Qxe6 {[%emt 0:01:06]} Qxd7 {[%emt 0:01:19]} 37. Qxd7 {[%emt 0:00:22]} b2 {[%emt 0:01:08]} 38. Rb7 {[%emt 0:00:11]} Bb4 {[%emt 0:00:12]} 39. Qd4+ {[%emt 0:00:14]} 1-0

[Event "Turkish Cup 2024"]
[Site "Denizli"]
[Date "2024.07.31"]
[Round "3"]
[White "Celik, Ege Yigit"]
[Black "Yenicirak, Gokdeniz Ege"]
[Result "1-0"]
[ECO "A16"]
[WhiteElo "1949"]
[BlackElo "1741"]
[Annotator "RC"]
[PlyCount "73"]
[EventDate "2024.08.01"]
[EventType "swiss"]
[EventCountry "TUR"]
[SourceTitle "playchess.com"]
[Source "ChessBase"]
[SourceQuality "1"]
[TimeControl "5400+30"]

1. c4 {[%emt 0:01:00]} Nf6 {[%emt 0:01:00]} 2. Nc3 {[%emt 0:00:30]} g6 {[%emt 0:00:30]} 3. g3 {[%emt 0:00:30]} Bg7 {[%emt 0:00:00]} 4. Bg2 {[%emt 0:00:00]} O-O {[%emt 0:00:00]} 5. e4 {[%emt 0:00:00]} d6 {[%emt 0:00:00]} 6. Nge2 {[%emt 0:00:00]} c6 {[%emt 0:01:00]} 7. O-O {[%emt 0:02:00]} Nbd7 {[%emt 0:00:30]} 8. d3 {[%emt 0:00:30]} a6 {[%emt 0:05:30]} 9. a4 {[%emt 0:04:30]} a5 {[%emt 0:04:30]} 10. h3 {[%emt 0:01:30]} Rb8 {[%emt 0:05:30]} 11. Be3 {[%emt 0:02:30]} e5 {[%emt 0:02:30]} 12. f4 {[%emt 0:05:30]} Ne8 {[%emt 0:04:30]} 13. f5 {[%emt 0:11:30]} Nc5 {[%emt 0:15:30]} 14. Ra3 {[%emt 0:04:30]} Bd7 {[%emt 0:02:30]} 15. Qd2 {[%emt 0:02:30]} f6 {[%emt 0:02:30]} 16. h4 {[%emt 0:04:30]} Nc7 {[%emt 0:03:30]} 17. g4 {[%emt 0:08:30]} Qe7 {[%emt 0:04:30]} 18. Ng3 {[%emt 0:05:30]} N7a6 {[%emt 0:01:30]} 19. g5 {[%emt 0:13:30]} Nb4 {[%emt 0:02:30]} 20. Nce2 {[%emt 0:05:30]} Rbd8 {[%emt 0:12:30]} 21. h5 {[%emt 0:11:30]} Be8 {[%emt 0:00:30]} 22. fxg6 {[%emt 0:01:28]} hxg6 {[%emt 0:00:00]} 23. hxg6 {[%emt 0:06:23]} Bxg6 {[%emt 0:00:00]} 24. Nf5 {[%emt 0:03:42]} Bxf5 {[%emt 0:00:30]} 25. Rxf5 {[%emt 0:00:00]} d5 {[%emt 0:00:30]} 26. gxf6 {[%emt 0:02:22]} Bxf6 {[%emt 0:00:30]} 27. Bh6 {[%emt 0:01:46]} Rf7 {[%emt 0:06:30]} 28. cxd5 {[%emt 0:00:04]} cxd5 {[%emt 0:00:00]} 29. exd5 {[%emt 0:01:27]} Nxd5 {[%emt 0:03:00]} 30. d4 {[%emt 0:00:02]} Nf4 {[%emt 0:11:12]} 31. Rg3+ {[%emt 0:00:43]} Kh8 {[%emt 0:02:36]} 32. Bxf4 {[%emt 0:01:35]} Nb3 {[%emt 0:03:13]} 33. Rxb3 {[%emt 0:00:36]} exf4 {[%emt 0:00:34]} 34. Rxb7 {[%emt 0:00:25]} Bxd4+ {[%emt 0:07:16]} 35. Nxd4 {[%emt 0:01:01]} Qxb7 {[%emt 0:00:09]} 36. Bxb7 {[%emt 0:00:13]} Rxf5 {[%emt 0:00:30]} 37. Qh2+ {[%emt 0:00:00]} 1-0

[Event "Turkish Cup 2024"]
[Site "Denizli"]
[Date "2024.07.31"]
[Round "3"]
[White "Hatirli, Ugur Can"]
[Black "Atayman, Evren"]
[Result "1-0"]
[ECO "A16"]
[WhiteElo "1948"]
[BlackElo "1785"]
[Annotator "RC"]
[PlyCount "149"]
[EventDate "2024.08.01"]
[EventType "swiss"]
[EventCountry "TUR"]
[SourceTitle "playchess.com"]
[Source "ChessBase"]
[SourceQuality "1"]
[TimeControl "5400+30"]

1. c4 {[%emt 0:01:00]} Nf6 {[%emt 0:01:00]} 2. Nc3 {[%emt 0:00:30]} g6 {[%emt 0:00:30]} 3. g3 {[%emt 0:00:30]} Bg7 {[%emt 0:00:30]} 4. Bg2 {[%emt 0:00:30]} c6 {[%emt 0:00:30]} 5. e4 {[%emt 0:02:30]} O-O {[%emt 0:02:30]} 6. Nge2 {[%emt 0:00:30]} a6 {[%emt 0:03:30]} 7. d4 {[%emt 0:02:30]} b5 {[%emt 0:01:30]} 8. O-O {[%emt 0:08:30]} bxc4 {[%emt 0:01:30]} 9. d5 {[%emt 0:03:30]} Bb7 {[%emt 0:04:30]} 10. Qa4 {[%emt 0:02:30]} cxd5 {[%emt 0:01:30]} 11. exd5 {[%emt 0:00:30]} Qc8 {[%emt 0:12:30]} 12. Rd1 {[%emt 0:04:30]} e6 {[%emt 0:02:30]} 13. Be3 {[%emt 0:21:30]} Nxd5 {[%emt 0:06:30]} 14. Nxd5 {[%emt 0:01:30]} Bxd5 {[%emt 0:04:30]} 15. Bxd5 {[%emt 0:01:30]} exd5 {[%emt 0:00:30]} 16. Nc3 {[%emt 0:00:00]} Nc6 {[%emt 0:03:30]} 17. Nxd5 {[%emt 0:04:00]} Qb7 {[%emt 0:01:30]} 18. Qxc4 {[%emt 0:11:30]} Qxb2 {[%emt 0:09:30]} 19. Rab1 {[%emt 0:03:30]} Ne5 {[%emt 0:01:30]} 20. Rxb2 {[%emt 0:01:30]} Nxc4 {[%emt 0:00:30]} 21. Rb7 {[%emt 0:00:30]} d6 {[%emt 0:03:30]} 22. Bf4 {[%emt 0:04:30]} Kh8 {[%emt 0:14:30]} 23. Rc1 {[%emt 0:03:30]} Rac8 {[%emt 0:05:54]} 24. Ra7 {[%emt 0:01:30]} a5 {[%emt 0:02:10]} 25. Ne7 {[%emt 0:01:37]} Rc5 {[%emt 0:00:22]} 26. Bxd6 {[%emt 0:01:54]} Nxd6 {[%emt 0:00:30]} 27. Rxc5 {[%emt 0:00:00]} Bd4 {[%emt 0:00:16]} 28. Rcxa5 {[%emt 0:00:11]} Bxa7 {[%emt 0:02:20]} 29. Rxa7 {[%emt 0:00:30]} Rb8 {[%emt 0:00:10]} 30. Nc6 {[%emt 0:02:50]} Rb2 {[%emt 0:01:41]} 31. a4 {[%emt 0:02:16]} f5 {[%emt 0:01:18]} 32. Nd8 {[%emt 0:04:52]} Ne4 {[%emt 0:01:32]} 33. Ne6 {[%emt 0:00:10]} h6 {[%emt 0:00:46]} 34. Nf4 {[%emt 0:03:22]} g5 {[%emt 0:05:00]} 35. Ng6+ {[%emt 0:00:38]} Kg8 {[%emt 0:00:02]} 36. Ne7+ {[%emt 0:00:11]} Kf7 {[%emt 0:00:26]} 37. Nxf5+ {[%emt 0:00:20]} Kf6 {[%emt 0:00:24]} 38. Nxh6 {[%emt 0:00:31]} Nc5 {[%emt 0:05:37]} 39. Ng4+ {[%emt 0:01:18]} Kf5 {[%emt 0:00:43]} 40. h3 {[%emt 0:00:19]} Nd3 {[%emt 0:00:28]} 41. Ra5+ {[%emt 0:01:04]} Ke6 {[%emt 0:00:14]} 42. Ra6+ {[%emt 0:00:57]} Ke7 {[%emt 0:00:25]} 43. Rf6 {[%emt 0:02:55]} Rb1+ {[%emt 0:00:15]} 44. Kh2 {[%emt 0:01:22]} Ra1 {[%emt 0:01:33]} 45. Rf3 {[%emt 0:00:43]} Nc5 {[%emt 0:01:11]} 46. Rf5 {[%emt 0:00:36]} Ne6 {[%emt 0:00:35]} 47. a5 {[%emt 0:00:02]} Nd4 {[%emt 0:00:00]} 48. Re5+ {[%emt 0:01:15]} Kd6 {[%emt 0:00:05]} 49. Kg2 {[%emt 0:00:00]} Nc2 {[%emt 0:00:51]} 50. Rf5 {[%emt 0:01:27]} Ke6 {[%emt 0:00:29]} 51. Rf6+ {[%emt 0:00:21]} Ke7 {[%emt 0:00:25]} 52. a6 {[%emt 0:00:56]} Ne1+ {[%emt 0:00:34]} 53. Kh2 {[%emt 0:01:17]} Ra3 {[%emt 0:00:31]} 54. Rf5 {[%emt 0:00:20]} Nf3+ {[%emt 0:01:08]} 55. Kg2 {[%emt 0:00:07]} Ne1+ {[%emt 0:00:37]} 56. Kf1 {[%emt 0:00:30]} Nd3 {[%emt 0:00:00]} 57. Rd5 {[%emt 0:00:33]} Ra1+ {[%emt 0:00:46]} 58. Ke2 {[%emt 0:00:09]} Nb4 {[%emt 0:00:16]} 59. Rxg5 {[%emt 0:00:23]} Rxa6 {[%emt 0:00:23]} 60. h4 {[%emt 0:00:26]} Ra2+ {[%emt 0:00:27]} 61. Kf3 {[%emt 0:00:22]} Nd3 {[%emt 0:01:12]} 62. Rd5 {[%emt 0:00:43]} Ra3 {[%emt 0:00:42]} 63. Ne3 {[%emt 0:00:28]} Ke6 {[%emt 0:00:29]} 64. Rd8 {[%emt 0:01:24]} Ne5+ {[%emt 0:00:16]} 65. Kg2 {[%emt 0:00:00]} Nf7 {[%emt 0:00:23]} 66. Rb8 {[%emt 0:00:05]} Ra2 {[%emt 0:00:33]} 67. g4 {[%emt 0:00:47]} Nd6 {[%emt 0:00:32]} 68. Rb4 {[%emt 0:00:21]} Nf7 {[%emt 0:01:26]} 69. Re4+ {[%emt 0:00:14]} Kf6 {[%emt 0:00:09]} 70. Nd5+ {[%emt 0:00:12]} Kg7 {[%emt 0:00:00]} 71. h5 {[%emt 0:01:07]} Ng5 {[%emt 0:00:12]} 72. Re7+ {[%emt 0:00:43]} Nf7 {[%emt 0:01:08]} 73. g5 {[%emt 0:01:03]} Kf8 {[%emt 0:00:12]} 74. g6 {[%emt 0:00:00]} Nh6 {[%emt 0:00:47]} 75. g7+ {[%emt 0:00:00]} 1-0

[Event "Turkish Cup 2024"]
[Site "Denizli"]
[Date "2024.07.31"]
[Round "3"]
[White "Kocakaplan, Emre"]
[Black "Turan, Seyithan"]
[Result "1-0"]
[ECO "E21"]
[WhiteElo "1926"]
[BlackElo "1764"]
[Annotator "ChessBase"]
[PlyCount "99"]
[EventDate "2024.08.01"]
[EventType "swiss"]
[EventCountry "TUR"]
[SourceTitle "playchess.com"]
[Source "ChessBase"]
[SourceQuality "1"]
[TimeControl "5400+30"]

1. d4 {[%emt 0:01:00]} Nf6 {[%emt 0:01:00]} 2. Nf3 {[%emt 0:00:30]} e6 {[%emt 0:00:00]} 3. c4 {[%emt 0:00:00]} Bb4+ {[%emt 0:00:00]} 4. Bd2 {[%emt 0:00:00]} Qe7 {[%emt 0:00:00]} 5. Nc3 {[%emt 0:00:30]} b6 {[%emt 0:01:00]} 6. Qc2 {[%emt 0:02:30]} Bb7 {[%emt 0:00:30]} 7. e3 {[%emt 0:01:30]} O-O {[%emt 0:02:30]} 8. Bd3 {[%emt 0:01:30]} d6 {[%emt 0:00:30]} 9. a3 {[%emt 0:02:30]} Bxc3 {[%emt 0:00:30]} 10. Bxc3 {[%emt 0:00:00]} Nbd7 {[%emt 0:01:30]} 11. O-O-O {[%emt 0:09:00]} e5 {[%emt 0:02:30]} 12. dxe5 {[%emt 0:01:30]} dxe5 {[%emt 0:02:30]} 13. Bf5 {[%emt 0:01:30]} a5 {[%emt 0:03:30]} 14. Bxd7 {[%emt 0:08:30]} Nxd7 {[%emt 0:00:30]} 15. Qf5 {[%emt 0:00:30]} Nc5 {[%emt 0:08:30]} 16. Qxe5 {[%emt 0:04:30]} Qxe5 {[%emt 0:04:30]} 17. Nxe5 {[%emt 0:11:30]} Bxg2 {[%emt 0:04:30]} 18. Rhg1 {[%emt 0:02:30]} Be4 {[%emt 0:03:30]} 19. Nd3 {[%emt 0:01:30]} Ne6 {[%emt 0:07:30]} 20. Nf4 {[%emt 0:01:30]} g6 {[%emt 0:03:30]} 21. Nh5 {[%emt 0:03:30]} f5 {[%emt 0:02:30]} 22. Rd7 {[%emt 0:03:30]} Rf7 {[%emt 0:03:30]} 23. Nf6+ {[%emt 0:00:30]} Kf8 {[%emt 0:00:30]} 24. Nxh7+ {[%emt 0:11:30]} Ke8 {[%emt 0:00:30]} 25. Rxf7 {[%emt 0:01:30]} Kxf7 {[%emt 0:00:00]} 26. Rd1 {[%emt 0:01:30]} Nc5 {[%emt 0:05:00]} 27. Ng5+ {[%emt 0:01:30]} Ke7 {[%emt 0:00:30]} 28. Nxe4 {[%emt 0:00:30]} Nxe4 {[%emt 0:00:00]} 29. Be1 {[%emt 0:04:30]} Nd6 {[%emt 0:02:00]} 30. c5 {[%emt 0:01:30]} bxc5 {[%emt 0:02:30]} 31. Rd5 {[%emt 0:02:30]} Nb7 {[%emt 0:03:30]} 32. f3 {[%emt 0:00:30]} Ke6 {[%emt 0:01:30]} 33. Rd3 {[%emt 0:01:30]} a4 {[%emt 0:02:30]} 34. Bg3 {[%emt 0:00:30]} Rc8 {[%emt 0:05:30]} 35. e4 {[%emt 0:02:55]} fxe4 {[%emt 0:01:30]} 36. fxe4 {[%emt 0:00:02]} Na5 {[%emt 0:01:30]} 37. Kc2 {[%emt 0:02:39]} Nb3 {[%emt 0:01:30]} 38. Rd5 {[%emt 0:00:45]} Rf8 {[%emt 0:03:30]} 39. Bxc7 {[%emt 0:05:41]} Rf2+ {[%emt 0:03:30]} 40. Kc3 {[%emt 0:01:01]} Re2 {[%emt 0:04:05]} 41. Rg5 {[%emt 0:00:43]} Re3+ {[%emt 0:02:25]} 42. Kc2 {[%emt 0:02:41]} Rxe4 {[%emt 0:01:34]} 43. Rxg6+ {[%emt 0:00:36]} Kd5 {[%emt 0:00:33]} 44. Kd3 {[%emt 0:03:36]} c4+ {[%emt 0:03:23]} 45. Kc3 {[%emt 0:00:43]} Re3+ {[%emt 0:05:06]} 46. Kb4 {[%emt 0:00:04]} Nd4 {[%emt 0:00:54]} 47. Rd6+ {[%emt 0:00:15]} Ke5 {[%emt 0:02:17]} 48. Rxd4+ {[%emt 0:00:09]} Ke6 {[%emt 0:00:00]} 49. Kxc4 {[%emt 0:00:40]} Re2 {[%emt 0:00:22]} 50. Kc3 {[%emt 0:00:12]} 1-0

[Event "Turkish Cup 2024"]
[Site "Denizli"]
[Date "2024.07.31"]
[Round "3"]
[White "Topal, Hasan Gokmen"]
[Black "Celebi, Mehmet Alper"]
[Result "0-1"]
[ECO "B23"]
[WhiteElo "1905"]
[BlackElo "1998"]
[Annotator "RC"]
[PlyCount "42"]
[EventDate "2024.08.01"]
[EventType "swiss"]
[EventCountry "TUR"]
[SourceTitle "playchess.com"]
[Source "ChessBase"]
[SourceQuality "1"]
[TimeControl "5400+30"]

1. e4 {[%emt 0:01:00]} c5 {[%emt 0:01:00]} 2. Nc3 {[%emt 0:00:30]} Nc6 {[%emt 0:00:30]} 3. Bb5 {[%emt 0:00:00]} Nd4 {[%emt 0:00:30]} 4. Nf3 {[%emt 0:00:00]} g6 {[%emt 0:00:00]} 5. Bc4 {[%emt 0:00:30]} Bg7 {[%emt 0:04:00]} 6. Nxd4 {[%emt 0:01:30]} cxd4 {[%emt 0:00:30]} 7. Qf3 {[%emt 0:00:30]} Nf6 {[%emt 0:06:30]} 8. Nb5 {[%emt 0:02:30]} O-O {[%emt 0:03:30]} 9. Nxd4 {[%emt 0:02:30]} b5 {[%emt 0:04:30]} 10. e5 {[%emt 0:33:30]} bxc4 {[%emt 0:10:30]} 11. exf6 {[%emt 0:07:30]} Bxf6 {[%emt 0:00:30]} 12. Qxa8 {[%emt 0:01:30]} Bxd4 {[%emt 0:01:30]} 13. Qf3 {[%emt 0:07:30]} Qb6 {[%emt 0:02:30]} 14. O-O {[%emt 0:04:30]} Bb7 {[%emt 0:00:30]} 15. Qh3 {[%emt 0:00:30]} f5 {[%emt 0:00:30]} 16. c3 {[%emt 0:03:30]} Bc5 {[%emt 0:01:30]} 17. d4 {[%emt 0:00:30]} cxd3 {[%emt 0:00:00]} 18. Qxd3 {[%emt 0:00:00]} Qc6 {[%emt 0:01:00]} 19. Qh3 {[%emt 0:01:00]} f4 {[%emt 0:00:00]} 20. Bd2 {[%emt 0:01:30]} Rf5 {[%emt 0:01:00]} 21. c4 {[%emt 0:17:20]} Rg5 {[%emt 0:00:30]} 0-1

[Event "Turkish Cup 2024"]
[Site "Denizli"]
[Date "2024.07.31"]
[Round "3"]
[White "Akyuz, Murat"]
[Black "Polat, Ali Gorkem"]
[Result "1-0"]
[ECO "E60"]
[WhiteElo "1890"]
[BlackElo "1798"]
[Annotator "NA"]
[PlyCount "73"]
[EventDate "2024.08.01"]
[EventType "swiss"]
[EventCountry "TUR"]
[SourceTitle "playchess.com"]
[Source "ChessBase"]
[SourceQuality "1"]
[TimeControl "5400+30"]

1. Nf3 {[%emt 0:01:00]} Nf6 {[%emt 0:01:00]} 2. b3 {[%emt 0:00:30]} g6 {[%emt 0:01:30]} 3. Bb2 {[%emt 0:00:30]} Bg7 {[%emt 0:00:00]} 4. d4 {[%emt 0:00:30]} O-O {[%emt 0:00:00]} 5. c4 {[%emt 0:00:30]} d6 {[%emt 0:02:30]} 6. Nc3 {[%emt 0:03:30]} Nbd7 {[%emt 0:00:30]} 7. e4 {[%emt 0:04:30]} Nh5 {[%emt 0:02:30]} 8. g3 {[%emt 0:03:30]} c5 {[%emt 0:12:30]} 9. d5 {[%emt 0:03:30]} a6 {[%emt 0:00:30]} 10. Qd2 {[%emt 0:01:30]} Nhf6 {[%emt 0:01:30]} 11. h3 {[%emt 0:01:30]} Ne8 {[%emt 0:00:30]} 12. Bg2 {[%emt 0:03:30]} Nc7 {[%emt 0:00:30]} 13. a4 {[%emt 0:00:30]} b6 {[%emt 0:02:30]} 14. O-O {[%emt 0:00:30]} Rb8 {[%emt 0:00:30]} 15. Nd1 {[%emt 0:07:30]} b5 {[%emt 0:03:30]} 16. Bxg7 {[%emt 0:00:30]} Kxg7 {[%emt 0:00:00]} 17. Qc3+ {[%emt 0:00:30]} f6 {[%emt 0:02:00]} 18. axb5 {[%emt 0:00:30]} axb5 {[%emt 0:00:00]} 19. Ne3 {[%emt 0:00:30]} b4 {[%emt 0:16:00]} 20. Qb2 {[%emt 0:01:30]} Nb6 {[%emt 0:00:30]} 21. Nh4 {[%emt 0:05:30]} Bd7 {[%emt 0:02:30]} 22. f4 {[%emt 0:00:30]} e5 {[%emt 0:10:30]} 23. dxe6 {[%emt 0:03:30]} Nxe6 {[%emt 0:00:00]} 24. Nf3 {[%emt 0:07:30]} Ra8 {[%emt 0:06:00]} 25. e5 {[%emt 0:08:30]} Rxa1 {[%emt 0:07:30]} 26. Rxa1 {[%emt 0:01:30]} dxe5 {[%emt 0:10:41]} 27. fxe5 {[%emt 0:00:30]} fxe5 {[%emt 0:07:10]} 28. Nxe5 {[%emt 0:04:30]} Nd4 {[%emt 0:01:26]} 29. Ra7 {[%emt 0:06:30]} Qb8 {[%emt 0:01:47]} 30. Nxd7 {[%emt 0:10:58]} Qxa7 {[%emt 0:00:17]} 31. Nxc5 {[%emt 0:02:56]} Qe7 {[%emt 0:09:07]} 32. Qxd4+ {[%emt 0:00:55]} Kg8 {[%emt 0:00:01]} 33. Nd5 {[%emt 0:01:54]} Qe1+ {[%emt 0:01:24]} 34. Kh2 {[%emt 0:00:12]} Nc8 {[%emt 0:00:00]} 35. Nf6+ {[%emt 0:01:09]} Kf7 {[%emt 0:00:00]} 36. Nxh7 {[%emt 0:02:04]} Re8 {[%emt 0:00:13]} 37. Bd5+ {[%emt 0:01:18]} 1-0